bitfinex/quotes_BTCUSD_20250105
["timestamp","ask_amount","ask_price","bid_price","bid_amount"]
[1736037519740,0.64365318,98388.0,98387.0,0.00022023]
[1736037519945,0.66850403,98388.0,98387.0,0.00122023]
[1736037520177,0.67150403,98388.0,98387.0,0.00122023]
[1736037520373,0.67150403,98388.0,98387.0,0.00022023]
[1736037520613,0.67150403,98388.0,98387.0,0.00122023]
[1736037520817,0.67450403,98388.0,98387.0,0.00122023]
[1736037521745,0.67150403,98388.0,98387.0,0.00122023]
[1736037522175,0.70619767,98388.0,98387.0,0.00122023]
[1736037523242,0.67450403,98388.0,98387.0,0.00122023]
[1736037523453,0.70620515,98388.0,98387.0,0.00122023]
[1736037530210,0.80620515,98388.0,98387.0,0.00122023]
[1736037530396,0.80620515,98388.0,98387.0,2.3e-07]
[1736037531190,0.90620515,98388.0,98387.0,2.3e-07]
[1736037531384,0.90620515,98388.0,98387.0,3e-08]
[1736037532221,0.8813543,98388.0,98387.0,3e-08]
[1736037534160,1.01822997,98388.0,98387.0,3e-08]
[1736037535301,0.96375101,98388.0,98387.0,3e-08]
[1736037537758,0.7813543,98388.0,98387.0,3e-08]
[1736037540571,0.8813543,98388.0,98387.0,3e-08]
[1736037540768,0.98534062,98388.0,98387.0,3e-08]
[1736037547794,0.88534062,98388.0,98387.0,3e-08]
[1736037548004,0.98534062,98388.0,98387.0,3e-08]
[1736037552526,0.8813543,98388.0,98387.0,3e-08]
[1736037555147,1.15494937,98388.0,98387.0,3e-08]
[1736037555859,1.15503487,98388.0,98387.0,3e-08]
[1736037556225,0.8814398,98388.0,98387.0,3e-08]
[1736037562138,0.6814398,98388.0,98387.0,3e-08]
[1736037562856,0.28145348,98388.0,98387.0,3e-08]
[1736037563064,0.25431132,98388.0,98387.0,3e-08]
[1736037563302,0.2226102,98388.0,98387.0,3e-08]
[1736037563906,0.3696102,98388.0,98387.0,3e-08]
[1736037564111,0.3666102,98388.0,98387.0,3e-08]
[1736037564291,0.3706102,98388.0,98387.0,0.00100003]
[1736037564734,0.3666102,98388.0,98387.0,3e-08]
[1736037565554,0.3636102,98388.0,98387.0,3e-08]
[1736037565700,0.3656102,98388.0,98387.0,3e-08]
[1736037565918,0.3696102,98388.0,98387.0,3e-08]
[1736037566128,0.3656102,98388.0,98387.0,3e-08]
[1736037566351,0.3636102,98388.0,98387.0,3e-08]
[1736037566533,0.3696102,98388.0,98387.0,3e-08]
[1736037567132,0.3716102,98388.0,98387.0,3e-08]
[1736037567358,0.3736102,98388.0,98387.0,3e-08]
[1736037567889,0.3656102,98388.0,98387.0,3e-08]
[1736037568722,0.3636102,98388.0,98387.0,3e-08]
[1736037569103,0.3656102,98388.0,98387.0,3e-08]
[1736037569872,0.3666102,98388.0,98387.0,3e-08]
[1736037570055,0.3656102,98388.0,98387.0,3e-08]
[1736037570350,0.3696102,98388.0,98387.0,3e-08]
[1736037570566,0.3676102,98388.0,98387.0,3e-08]
[1736037571174,0.3636102,98388.0,98387.0,3e-08]
[1736037572530,0.3696102,98388.0,98387.0,3e-08]
[1736037573100,0.3736102,98388.0,98387.0,3e-08]
[1736037591676,0.2236102,98388.0,98387.0,3e-08]
[1736037593023,0.2156102,98388.0,98387.0,3e-08]
[1736037593230,0.2093615,98388.0,98387.0,3e-08]
[1736037593455,0.2053615,98388.0,98387.0,3e-08]
[1736037593871,0.2063615,98388.0,98387.0,3e-08]
[1736037594085,0.2083615,98388.0,98387.0,3e-08]
[1736037594650,0.2063615,98388.0,98387.0,3e-08]
[1736037594889,0.2073615,98388.0,98387.0,3e-08]
[1736037595038,0.2043615,98388.0,98387.0,3e-08]
[1736037595255,0.2053615,98388.0,98387.0,3e-08]
[1736037595495,0.2043615,98388.0,98387.0,3e-08]
[1736037596983,0.2033615,98388.0,98387.0,3e-08]
[1736037597388,0.2043615,98388.0,98387.0,3e-08]
[1736037597815,0.2033615,98388.0,98387.0,3e-08]
[1736037599624,0.2033615,98388.0,98387.0,0.00100003]
[1736037599789,0.2033615,98388.0,98387.0,3e-08]
[1736037600151,0.2033615,98388.0,98387.0,0.00200003]
[1736037601094,0.3272615,98388.0,98387.0,0.00200003]
[1736037601300,0.3272615,98388.0,98387.0,3e-08]
[1736037612446,0.4772615,98388.0,98387.0,3e-08]
[1736037612645,0.50902803,98388.0,98387.0,3e-08]
[1736037612804,0.4772615,98388.0,98387.0,3e-08]
[1736037613178,0.50902766,98388.0,98387.0,3e-08]
[1736037614069,0.64616928,98388.0,98387.0,3e-08]
[1736037615253,0.50902766,98388.0,98387.0,3e-08]
[1736037615436,0.4772615,98388.0,98387.0,3e-08]
[1736037617694,0.50902696,98388.0,98387.0,3e-08]
[1736037618097,0.4772615,98388.0,98387.0,3e-08]
[1736037618508,0.50902649,98388.0,98387.0,3e-08]
[1736037619403,0.4772615,98388.0,98387.0,3e-08]
[1736037619609,0.50902611,98388.0,98387.0,3e-08]
[1736037620253,0.50902627,98388.0,98387.0,3e-08]
[1736037621462,0.4772615,98388.0,98387.0,3e-08]
[1736037623598,0.56874624,98388.0,98387.0,3e-08]
[1736037626013,0.60051042,98388.0,98387.0,3e-08]
[1736037626426,0.4772615,98388.0,98387.0,3e-08]
[1736037626618,0.50902543,98388.0,98387.0,3e-08]
[1736037629497,0.64616705,98388.0,98387.0,3e-08]
[1736037630877,0.75015337,98388.0,98387.0,3e-08]
[1736037631078,0.64616705,98388.0,98387.0,3e-08]
[1736037632015,0.50902543,98388.0,98387.0,3e-08]
[1736037633994,0.61301175,98388.0,98387.0,3e-08]
[1736037634427,0.63601175,98388.0,98387.0,3e-08]
[1736037634592,0.73601175,98388.0,98387.0,3e-08]
[1736037634982,0.83999807,98388.0,98387.0,3e-08]
[1736037635093,0.83899807,98388.0,98387.0,3e-08]
[1736037636597,0.84099807,98388.0,98387.0,3e-08]
[1736037636986,0.83899807,98388.0,98387.0,3e-08]
[1736037637204,0.84299807,98388.0,98387.0,3e-08]
[1736037637409,0.84699807,98388.0,98387.0,3e-08]
[1736037637692,0.84299807,98388.0,98387.0,3e-08]
[1736037638462,0.479314,98370.0,98369.0,0.0001708]
[1736037638676,0.479314,98370.0,98369.0,0.00066549]
[1736037640222,0.481314,98370.0,98369.0,0.00066549]
[1736037640408,0.486314,98370.0,98369.0,0.00066549]
[1736037641021,0.59030032,98370.0,98369.0,4.9e-07]
[1736037641223,0.430859,98348.0,98347.0,0.0001708]
[1736037641431,0.54176532,98348.0,98347.0,0.00022026]
[1736037642648,0.56160922,98348.0,98347.0,0.00022026]
[1736037643038,0.56160922,98348.0,98347.0,0.00122026]
[1736037643625,0.56160922,98348.0,98347.0,0.00222026]
[1736037643832,0.56160922,98348.0,98347.0,0.00022026]
[1736037644219,0.6632978,98348.0,98347.0,0.00122026]
[1736037644419,0.6632978,98348.0,98347.0,0.00022026]
[1736037644622,0.6623778,98348.0,98347.0,0.00022026]
[1736037644847,0.6692978,98348.0,98347.0,0.00022026]
[1736037645045,0.77328412,98348.0,98347.0,0.00022026]
[1736037645474,0.68187787,98348.0,98347.0,0.00022026]
[1736037647385,0.70487787,98348.0,98347.0,0.00022026]
[1736037648440,0.60089155,98348.0,98347.0,0.00022026]
[1736037654677,0.59397155,98348.0,98347.0,0.00022026]
[1736037654883,0.60089155,98348.0,98347.0,0.00022026]
[1736037664746,0.59397155,98348.0,98347.0,0.00022026]
[1736037664951,0.60089155,98348.0,98347.0,0.00022026]
[1736037665671,0.70487787,98348.0,98347.0,0.00022026]
[1736037669293,0.60089155,98348.0,98347.0,0.00022026]
[1736037674707,0.63263873,98348.0,98347.0,0.00022026]
[1736037675967,0.60271873,98348.0,98347.0,0.00022026]
[1736037676191,0.60963873,98348.0,98347.0,0.00022026]
[1736037679870,0.60271873,98348.0,98347.0,0.00022026]
[1736037680052,0.52521873,98348.0,98347.0,0.00022026]
[1736037682194,0.42123241,98348.0,98347.0,0.00022026]
[1736037682338,0.38948523,98348.0,98347.0,0.00022026]
[1736037682551,0.209359,98348.0,98347.0,0.00022026]
[1736037682956,0.20837551,98348.0,98347.0,0.00022026]
[1736037683503,0.20637551,98348.0,98347.0,0.00022026]
[1736037683719,0.20837551,98348.0,98347.0,0.00022026]
[1736037684249,0.20637551,98348.0,98347.0,0.00022026]
[1736037684383,0.20737551,98348.0,98347.0,0.00022026]
[1736037684578,0.20337551,98348.0,98347.0,0.00022026]
[1736037685060,0.20437551,98348.0,98347.0,0.00022026]
[1736037685462,0.20637551,98348.0,98347.0,0.00022026]
[1736037686385,0.20337551,98348.0,98347.0,0.00022026]
[1736037686552,0.20537551,98348.0,98347.0,0.00022026]
[1736037686957,0.20437551,98348.0,98347.0,0.00022026]
[1736037687158,0.20537551,98348.0,98347.0,0.00022026]
[1736037687731,0.20437551,98348.0,98347.0,0.00022026]
[1736037687917,0.28327551,98348.0,98347.0,0.00022026]
[1736037688343,0.28127551,98348.0,98347.0,0.00022026]
[1736037688747,0.28327551,98348.0,98347.0,0.00022026]
[1736037688946,0.28127551,98348.0,98347.0,0.00022026]
[1736037689459,0.28227551,98348.0,98347.0,0.00022026]
[1736037689673,0.28127551,98348.0,98347.0,0.00022026]
[1736037689903,0.28227551,98348.0,98347.0,0.00022026]
[1736037697365,0.43227551,98348.0,98347.0,0.00022026]
[1736037698324,0.43127551,98348.0,98347.0,0.00022026]
[1736037698524,0.43027551,98348.0,98347.0,0.00022026]
[1736037698922,0.43127551,98348.0,98347.0,0.00022026]
[1736037699613,0.43227551,98348.0,98347.0,0.00022026]
[1736037700173,0.52368176,98348.0,98347.0,0.00022026]
[1736037705050,0.52376726,98348.0,98347.0,0.00022026]
[1736037708774,0.43236101,98348.0,98347.0,0.00022026]
[1736037716363,0.56947039,98348.0,98347.0,0.00022026]
[1736037719447,0.60125138,98348.0,98347.0,0.00022026]
[1736037721564,0.464142,98348.0,98347.0,0.00022026]
[1736037728192,0.6469545,98348.0,98347.0,0.00022026]
[1736037733590,0.464142,98348.0,98347.0,0.00022026]
[1736037737468,0.69265763,98348.0,98347.0,0.00022026]
[1736037742198,0.69065763,98348.0,98347.0,0.00022026]
[1736037742678,0.69165763,98348.0,98347.0,0.00022026]
[1736037743460,0.69265763,98348.0,98347.0,0.00022026]
[1736037743818,0.463142,98348.0,98347.0,0.00022026]
[1736037744164,0.465142,98348.0,98347.0,0.00022026]
[1736037748343,0.59212832,98348.0,98347.0,0.00022026]
[1736037751528,0.63922832,98348.0,98347.0,0.00022026]
[1736037754213,0.63922832,98348.0,98347.0,2.6e-07]
[1736037756296,0.91344708,98348.0,98347.0,2.6e-07]
[1736037758153,1.02455897,98348.0,98347.0,2.6e-07]
[1736037759119,0.63922832,98348.0,98347.0,2.6e-07]
[1736037763296,0.63922832,98348.0,98347.0,0.00017106]
[1736037768365,0.519162,98348.0,98347.0,0.00017106]
[1736037768770,0.465142,98348.0,98347.0,0.00017106]
[1736037770402,0.43336101,98348.0,98347.0,0.00017106]
[1736037774611,0.57054636,98348.0,98347.0,0.00017106]
[1736037776765,0.6510062,98348.0,98347.0,0.00017106]
[1736037777106,0.51382085,98348.0,98347.0,0.00017106]
[1736037779003,0.64080717,98348.0,98347.0,0.00017106]
[1736037779548,0.64772717,98348.0,98347.0,0.00017106]
[1736037780426,0.64772717,98348.0,98347.0,6e-08]
[1736037782429,1.03316929,98348.0,98347.0,6e-08]
[1736037783599,1.12794915,98348.0,98347.0,6e-08]
[1736037783923,1.03316929,98348.0,98347.0,6e-08]
[1736037784124,1.3075876,98348.0,98347.0,6e-08]
[1736037785113,0.92214548,98348.0,98347.0,6e-08]
[1736037791793,0.64772717,98348.0,98347.0,6e-08]
[1736037805798,0.64672717,98348.0,98347.0,6e-08]
[1736037806295,0.63980717,98348.0,98347.0,6e-08]
[1736037806531,0.64472717,98348.0,98347.0,6e-08]
[1736037806792,0.64672717,98348.0,98347.0,6e-08]
[1736037807023,0.64972717,98348.0,98347.0,6e-08]
[1736037809192,0.75371349,98348.0,98347.0,6e-08]
[1736037821508,1.13885977,98348.0,98347.0,6e-08]
[1736037825984,1.13193977,98348.0,98347.0,6e-08]
[1736037826161,1.13885977,98348.0,98347.0,6e-08]
[1736037830937,1.02795345,98348.0,98347.0,6e-08]
[1736037831136,1.03487345,98348.0,98347.0,6e-08]
[1736037852507,1.02795345,98348.0,98347.0,6e-08]
[1736037852714,1.03487345,98348.0,98347.0,6e-08]
[1736037853979,0.60102717,98348.0,98347.0,6e-08]
[1736037866335,0.59410717,98348.0,98347.0,6e-08]
[1736037866477,0.60102717,98348.0,98347.0,6e-08]
[1736037881653,0.65052717,98348.0,98347.0,6e-08]
[1736037899875,0.92520996,98348.0,98347.0,6e-08]
[1736037905198,0.65052717,98348.0,98347.0,6e-08]
[1736037906450,0.92520996,98348.0,98347.0,6e-08]
[1736037908543,0.65052717,98348.0,98347.0,6e-08]
[1736037917493,0.51662085,98348.0,98347.0,6e-08]
[1736037917744,0.38922085,98348.0,98347.0,6e-08]
[1736037917983,0.35746101,98348.0,98347.0,6e-08]
[1736037918502,0.20746101,98348.0,98347.0,6e-08]
[1736037919509,0.20546101,98348.0,98347.0,6e-08]
[1736037919763,0.20246101,98348.0,98347.0,6e-08]
[1736037919999,0.20546101,98348.0,98347.0,6e-08]
[1736037920229,0.20446101,98348.0,98347.0,6e-08]
[1736037920479,0.20246101,98348.0,98347.0,6e-08]
[1736037924764,0.20246101,98348.0,98347.0,0.00100006]
[1736037926069,0.20246101,98348.0,98347.0,6e-08]
[1736037927098,0.20246101,98348.0,98347.0,0.00100006]
[1736037929351,0.20246101,98348.0,98347.0,6e-08]
[1736037929745,0.20246101,98348.0,98347.0,0.00100006]
[1736037929980,0.20246101,98348.0,98347.0,6e-08]
[1736037930387,0.20246101,98348.0,98347.0,0.00100006]
[1736037936619,0.20246101,98348.0,98347.0,6e-08]
[1736037936789,0.20246101,98348.0,98347.0,0.00100006]
[1736037938765,0.20246101,98348.0,98347.0,6e-08]
[1736037938882,0.20246101,98348.0,98347.0,0.00100006]
[1736037939537,0.20246101,98348.0,98347.0,0.00500006]
[1736037940391,0.20246101,98348.0,98347.0,0.00100006]
[1736037940595,0.20246101,98348.0,98347.0,0.00200006]
[1736037940802,0.20246101,98348.0,98347.0,0.00100006]
[1736037943403,0.20246101,98348.0,98347.0,6e-08]
[1736037943709,0.20246101,98348.0,98347.0,0.00100006]
[1736037945092,0.20246101,98348.0,98347.0,6e-08]
[1736037945499,0.20246101,98348.0,98347.0,0.00200006]
[1736037946736,0.20246101,98348.0,98347.0,6e-08]
[1736037946912,0.20246101,98348.0,98347.0,0.00300006]
[1736037947487,0.20246101,98348.0,98347.0,0.00200006]
[1736037948096,0.20246101,98348.0,98347.0,6e-08]
[1736037948687,0.20246101,98348.0,98347.0,0.00400006]
[1736037949235,0.20246101,98348.0,98347.0,0.00100006]
[1736037949619,0.20246101,98348.0,98347.0,0.00400006]
[1736037950028,0.20246101,98348.0,98347.0,0.00300006]
[1736037950345,0.20246101,98348.0,98347.0,0.00400006]
[1736037957006,0.28526101,98348.0,98347.0,0.00400006]
[1736037966783,0.28526101,98348.0,98347.0,0.012058]
[1736037966994,0.28526101,98348.0,98347.0,0.00400006]
[1736037967208,0.28526101,98348.0,98347.0,0.012058]
[1736037967384,0.28526101,98348.0,98347.0,0.00400006]
[1736037967589,0.28526101,98348.0,98347.0,0.012058]
[1736037967782,0.28526101,98348.0,98347.0,0.00400006]
[1736037968011,0.28526101,98348.0,98347.0,0.012058]
[1736037968220,0.28526101,98348.0,98347.0,0.00400006]
[1736037968432,0.28526101,98348.0,98347.0,0.012058]
[1736037968565,0.28526101,98348.0,98347.0,0.00400006]
[1736037973850,0.28526101,98348.0,98347.0,0.01205488]
[1736037974055,0.28526101,98348.0,98347.0,0.00400006]
[1736037974435,0.28526101,98348.0,98347.0,0.01205488]
[1736037984173,0.28526101,98348.0,98347.0,0.01105488]
[1736037984378,0.28526101,98348.0,98347.0,0.00805488]
[1736037984606,0.28526101,98348.0,98347.0,0.00905488]
[1736037984965,0.28526101,98348.0,98347.0,0.00805488]
[1736037985263,0.28526101,98348.0,98347.0,0.00905488]
[1736037987540,0.33036101,98348.0,98347.0,0.00905488]
[1736037987743,0.33036101,98348.0,98347.0,0.00100006]
[1736037992453,0.33036101,98348.0,98347.0,6e-08]
[1736037995414,0.42283145,98348.0,98347.0,6e-08]
[1736037995619,0.42183145,98348.0,98347.0,6e-08]
[1736037995784,0.44180498,98348.0,98347.0,6e-08]
[1736037995963,0.44280498,98348.0,98347.0,6e-08]
[1736037996664,0.35133454,98348.0,98347.0,6e-08]
[1736037997087,0.35233454,98348.0,98347.0,6e-08]
[1736037997293,0.35133454,98348.0,98347.0,6e-08]
[1736037997495,0.35233454,98348.0,98347.0,6e-08]
[1736037997748,0.35333454,98348.0,98347.0,6e-08]
[1736037997953,0.63032086,98348.0,98347.0,6e-08]
[1736037998277,0.62932086,98348.0,98347.0,6e-08]
[1736037998473,0.63032086,98348.0,98347.0,6e-08]
[1736037999324,0.63724086,98348.0,98347.0,6e-08]
[1736037999717,0.7287113,98348.0,98347.0,6e-08]
[1736037999921,0.7277113,98348.0,98347.0,6e-08]
[1736038000366,0.7287113,98348.0,98347.0,6e-08]
[1736038000572,0.63724086,98348.0,98347.0,6e-08]
[1736038018374,0.73843788,98348.0,98347.0,6e-08]
[1736038019318,0.63724086,98348.0,98347.0,6e-08]
[1736038022288,0.66900365,98348.0,98347.0,6e-08]
[1736038029375,0.76047409,98348.0,98347.0,6e-08]
[1736038031709,0.66900365,98348.0,98347.0,6e-08]
[1736038035334,0.85215219,98348.0,98347.0,6e-08]
[1736038036563,0.89793932,98348.0,98347.0,6e-08]
[1736038039093,0.66900365,98348.0,98347.0,6e-08]
[1736038044452,0.76100063,98348.0,98347.0,6e-08]
[1736038045974,0.66900365,98348.0,98347.0,6e-08]
[1736038073902,0.66600365,98348.0,98347.0,6e-08]
[1736038074227,0.67200365,98348.0,98347.0,6e-08]
[1736038075360,0.67500365,98348.0,98347.0,6e-08]
[1736038075922,0.305,98347.0,98325.0,0.0001708]
[1736038076075,0.203404,98326.0,98325.0,0.00022028]
[1736038077577,0.204404,98326.0,98325.0,0.00022028]
[1736038079121,0.30839032,98326.0,98325.0,0.00022028]
[1736038079307,0.41409032,98326.0,98325.0,0.00022028]
[1736038079526,0.44687004,98326.0,98325.0,0.00022028]
[1736038080207,0.44487004,98326.0,98325.0,0.00022028]
[1736038080421,0.54885636,98326.0,98325.0,0.00022028]
[1736038080619,0.55285636,98326.0,98325.0,0.00022028]
[1736038080817,0.44887004,98326.0,98325.0,0.00022028]
[1736038081002,0.44487004,98326.0,98325.0,0.00022028]
[1736038081531,0.59487004,98326.0,98325.0,0.00022028]
[1736038081954,0.82366376,98326.0,98325.0,0.00022028]
[1736038082357,0.82466376,98326.0,98325.0,0.00022028]
[1736038082564,0.82766376,98326.0,98325.0,0.00022028]
[1736038082789,0.88204379,98326.0,98325.0,0.00022028]
[1736038083000,0.86946376,98326.0,98325.0,0.00022028]
[1736038083198,0.87146376,98326.0,98325.0,0.00022028]
[1736038083608,0.65289977,98326.0,98325.0,0.00022028]
[1736038084029,0.65389977,98326.0,98325.0,0.00022028]
[1736038084186,0.173,98325.0,98324.0,8e-08]
[1736038084352,0.43726604,98325.0,98324.0,8e-08]
[1736038086599,0.44626604,98325.0,98324.0,0.00100008]
[1736038087404,0.44026604,98325.0,98324.0,8e-08]
[1736038088086,0.45771463,98325.0,98324.0,8e-08]
[1736038088481,0.43726604,98325.0,98324.0,8e-08]
[1736038088944,0.44026604,98325.0,98324.0,8e-08]
[1736038089315,0.41648632,98325.0,98324.0,0.00100008]
[1736038094259,0.55342984,98325.0,98324.0,0.00100008]
[1736038098732,0.41648632,98325.0,98324.0,0.00100008]
[1736038099078,0.51131401,98325.0,98324.0,0.00100008]
[1736038099295,0.51131401,98325.0,98324.0,8e-08]
[1736038099907,0.54301971,98325.0,98324.0,8e-08]
[1736038100107,0.58513554,98325.0,98324.0,8e-08]
[1736038100848,0.58513554,98325.0,98321.0,8.8e-07]
[1736038101032,0.2981,98322.0,98321.0,8.8e-07]
[1736038101234,0.40208632,98322.0,98321.0,8.8e-07]
[1736038101527,0.43379404,98322.0,98321.0,8.8e-07]
[1736038101963,0.45283092,98322.0,98321.0,8.8e-07]
[1736038102159,0.15,98315.0,98301.0,0.0001708]
[1736038102485,0.352954,98302.0,98301.0,0.00022026]
[1736038102696,0.46386032,98302.0,98301.0,0.00022026]
[1736038103069,0.4828972,98302.0,98301.0,0.00022026]
[1736038103477,0.4828972,98302.0,98301.0,0.00122026]
[1736038103696,0.46386032,98302.0,98301.0,0.00122026]
[1736038103906,0.48790236,98302.0,98301.0,0.00122026]
[1736038104307,0.48790236,98302.0,98301.0,0.00022026]
[1736038104707,0.48890236,98302.0,98301.0,0.00022026]
[1736038105117,0.48790236,98302.0,98301.0,0.00022026]
[1736038105446,0.48990236,98302.0,98301.0,0.00022026]
[1736038105646,0.49390236,98302.0,98301.0,0.00022026]
[1736038106148,0.51460692,98302.0,98301.0,0.00022026]
[1736038106790,0.51260692,98302.0,98301.0,0.00022026]
[1736038106996,0.51360692,98302.0,98301.0,0.00022026]
[1736038108318,0.5236916,98302.0,98301.0,0.00022026]
[1736038112279,0.4547916,98302.0,98301.0,0.00022026]
[1736038114661,0.3672716,98302.0,98301.0,0.00022026]
[1736038114894,0.26328528,98302.0,98301.0,0.00022026]
[1736038116964,0.24258072,98302.0,98301.0,0.00022026]
[1736038125875,0.22353868,98302.0,98301.0,0.00022026]
[1736038126070,0.24259845,98302.0,98301.0,0.00022026]
[1736038130832,0.24159845,98302.0,98301.0,0.00022026]
[1736038131149,0.24259845,98302.0,98301.0,0.00022026]
[1736038131780,0.23359845,98302.0,98301.0,0.00022026]
[1736038131928,0.23759845,98302.0,98301.0,0.00022026]
[1736038132352,0.23659845,98302.0,98301.0,0.00022026]
[1736038132577,0.23759845,98302.0,98301.0,0.00022026]
[1736038132900,0.23359845,98302.0,98301.0,0.00022026]
[1736038133106,0.23259845,98302.0,98301.0,0.00022026]
[1736038133259,0.23659845,98302.0,98301.0,0.00022026]
[1736038133466,0.23359845,98302.0,98301.0,0.00022026]
[1736038133878,0.23759845,98302.0,98301.0,0.00022026]
[1736038134073,0.23659845,98302.0,98301.0,0.00022026]
[1736038134895,0.23259845,98302.0,98301.0,0.00022026]
[1736038135294,0.23659845,98302.0,98301.0,0.00022026]
[1736038135495,0.23259845,98302.0,98301.0,0.00022026]
[1736038135977,0.23759845,98302.0,98301.0,0.00022026]
[1736038136590,0.23659845,98302.0,98301.0,0.00022026]
[1736038136791,0.23759845,98302.0,98301.0,0.00022026]
[1736038137361,0.31939845,98302.0,98301.0,0.00022026]
[1736038138541,0.30033868,98302.0,98301.0,0.00022026]
[1736038138745,0.31941001,98302.0,98301.0,0.00022026]
[1736038140470,0.40970619,98302.0,98301.0,0.00022026]
[1736038140881,0.41070619,98302.0,98301.0,0.00022026]
[1736038141336,0.40670619,98302.0,98301.0,0.00022026]
[1736038141742,0.41070619,98302.0,98301.0,0.00022026]
[1736038142346,0.40970619,98302.0,98301.0,0.00022026]
[1736038142508,0.40570619,98302.0,98301.0,0.00022026]
[1736038142707,0.40670619,98302.0,98301.0,0.00022026]
[1736038142958,0.41070619,98302.0,98301.0,0.00022026]
[1736038144481,0.40670619,98302.0,98301.0,0.00022026]
[1736038144789,0.40970619,98302.0,98301.0,0.00022026]
[1736038145206,0.40870619,98302.0,98301.0,0.00022026]
[1736038145463,0.40970619,98302.0,98301.0,0.00022026]
[1736038145952,0.31841001,98302.0,98301.0,0.00022026]
[1736038154005,0.45535429,98302.0,98301.0,0.00022026]
[1736038157954,0.61466997,98302.0,98301.0,0.00022026]
[1736038175048,0.79729085,98302.0,98301.0,0.00022026]
[1736038181470,0.71549085,98302.0,98301.0,0.00022026]
[1736038182044,0.53286997,98302.0,98301.0,0.00022026]
[1736038184295,0.71612285,98302.0,98301.0,0.00022026]
[1736038191249,0.82010917,98302.0,98301.0,0.00022026]
[1736038191881,0.85192272,98302.0,98301.0,0.00022026]
[1736038192079,0.82010917,98302.0,98301.0,0.00022026]
[1736038192285,0.85192267,98302.0,98301.0,0.00022026]
[1736038192719,0.82010917,98302.0,98301.0,0.00022026]
[1736038193676,0.66866841,98302.0,98301.0,0.00022026]
[1736038193877,0.63685629,98302.0,98301.0,0.00022026]
[1736038194079,0.66866913,98302.0,98301.0,0.00022026]
[1736038200977,0.63685629,98302.0,98301.0,0.00022026]
[1736038202708,0.66865917,98302.0,98301.0,0.00022026]
[1736038203104,0.63685629,98302.0,98301.0,0.00022026]
[1736038203326,0.8658553,98302.0,98301.0,0.00022026]
[1736038203666,0.84678397,98302.0,98301.0,0.00022026]
[1736038203872,0.86586482,98302.0,98301.0,0.00022026]
[1736038204103,0.89766754,98302.0,98301.0,0.00022026]
[1736038204328,0.86586482,98302.0,98301.0,0.00022026]
[1736038205153,0.89766707,98302.0,98301.0,0.00022026]
[1736038205821,0.86586482,98302.0,98301.0,0.00022026]
[1736038206239,0.66866781,98302.0,98301.0,0.00022026]
[1736038207081,0.63686581,98302.0,98301.0,0.00022026]
[1736038208605,0.86584718,98302.0,98301.0,0.00022026]
[1736038210636,0.76186086,98302.0,98301.0,0.00022026]
[1736038212425,0.53287949,98302.0,98301.0,0.00022026]
[1736038212635,0.52279481,98302.0,98301.0,0.00022026]
[1736038212847,0.31934081,98302.0,98301.0,0.00022026]
[1736038213499,0.02308085,98302.0,98301.0,0.00022026]
[1736038214124,0.02208085,98302.0,98301.0,0.00022026]
[1736038214494,0.02308085,98302.0,98301.0,0.00022026]
[1736038214728,0.004,98302.0,98301.0,0.00022026]
[1736038214936,0.003,98302.0,98301.0,0.00022026]
[1736038215109,0.20345,98305.0,98301.0,0.00022026]
[1736038215247,0.4069,98305.0,98301.0,0.00022026]
[1736038215452,0.003,98302.0,98301.0,0.00022026]
[1736038216131,0.004,98302.0,98301.0,0.00022026]
[1736038216461,0.4069,98305.0,98301.0,0.00022026]
[1736038216641,0.4069,98305.0,98301.0,0.00122026]
[1736038217086,0.4069,98305.0,98301.0,0.00022026]
[1736038217830,0.4079,98305.0,98301.0,0.00022026]
[1736038218426,0.4069,98305.0,98301.0,0.00022026]
[1736038218823,0.4069,98305.0,98301.0,0.00122026]
[1736038219144,0.4069,98305.0,98301.0,0.00022026]
[1736038222087,0.4079,98305.0,98301.0,0.00022026]
[1736038222706,0.4089,98305.0,98301.0,0.00022026]
[1736038223440,0.4069,98305.0,98301.0,0.00022026]
[1736038225371,0.4079,98305.0,98301.0,0.00022026]
[1736038225996,0.4089,98305.0,98301.0,0.00022026]
[1736038226390,0.4079,98305.0,98301.0,0.00022026]
[1736038226592,0.4089,98305.0,98301.0,0.00022026]
[1736038226793,0.4079,98305.0,98301.0,0.00022026]
[1736038227230,0.4089,98305.0,98301.0,0.00022026]
[1736038228346,0.4069,98305.0,98301.0,0.00022026]
[1736038228767,0.4079,98305.0,98301.0,0.00022026]
[1736038229524,0.4089,98305.0,98301.0,0.00022026]
[1736038229727,0.4079,98305.0,98301.0,0.00022026]
[1736038229968,0.4089,98305.0,98301.0,0.00022026]
[1736038230166,0.4079,98305.0,98301.0,0.00022026]
[1736038231793,0.4089,98305.0,98301.0,0.00022026]
[1736038232109,0.4069,98305.0,98301.0,0.00022026]
[1736038234032,0.203452,98303.0,98301.0,0.00022026]
[1736038234718,0.0455,98302.0,98301.0,0.00022026]
[1736038239924,0.0455,98302.0,98301.0,0.00122026]
[1736038256582,0.203456,98301.0,98290.0,0.07516253]
[1736038256784,0.203456,98301.0,98291.0,0.11813968]
[1736038258067,0.203456,98301.0,98291.0,0.11913968]
[1736038258342,0.203456,98301.0,98293.0,0.03]
[1736038258547,0.203456,98301.0,98294.0,0.10500357]
[1736038258847,0.203456,98301.0,98294.0,0.11814331]
[1736038261315,0.203456,98301.0,98294.0,0.11914331]
[1736038268155,0.0455,98302.0,98296.0,0.09145298]
[1736038268478,8.54e-05,98301.0,98297.0,0.10398632]
[1736038268622,8.54e-05,98301.0,98297.0,0.11712606]
[1736038271554,8.54e-05,98301.0,98297.0,0.11812606]
[1736038271755,0.0805,98300.0,98297.0,0.11812606]
[1736038272982,0.0805,98300.0,98297.0,0.11712606]
[1736038273485,0.0805,98300.0,98297.0,0.11812606]
[1736038274676,0.20346,98299.0,98297.0,0.01413974]
[1736038274879,0.0805,98298.0,98297.0,0.01513974]
[1736038275684,0.0805,98298.0,98297.0,0.01413974]
[1736038275887,0.127,98298.0,98297.0,0.01613974]
[1736038276313,0.127,98298.0,98297.0,0.01513974]
[1736038276740,0.127,98298.0,98297.0,0.01413974]
[1736038277055,0.127,98298.0,98297.0,0.01313974]
[1736038277254,0.0465,98298.0,98295.0,0.09145298]
[1736038277460,0.0764,98297.0,98296.0,0.01314704]
[1736038279025,0.0764,98297.0,98296.0,0.01614704]
[1736038280794,0.0764,98297.0,98296.0,0.01714704]
[1736038284017,0.0764,98297.0,98296.0,0.10860002]
[1736038288228,0.07767158,98297.0,98296.0,0.10860002]
[1736038288421,0.14358356,98297.0,98296.0,0.10860002]
[1736038288624,0.12467158,98297.0,98296.0,0.10860002]
[1736038289255,0.12467158,98297.0,98296.0,0.01714704]
[1736038290868,0.12467158,98297.0,98296.0,0.004]